fUST/lending_fUST_20240413
["ID","MTS","AMOUNT","RATE_DAILY","PERIOD"]
[322319977,1712951446518,-500.0,0.00054794,120]
[322319979,1712951446527,-500.0,0.00054794,120]
[322319981,1712951446536,-500.0,0.00054794,120]
[322319983,1712951446545,-1621.18,0.00054794,120]
[322319985,1712951446555,-500.0,0.00054794,120]
[322319987,1712951446564,-500.0,0.00054794,120]
[322319989,1712951446573,-500.0,0.00054794,120]
[322319991,1712951446582,-500.0,0.00054794,120]
[322319993,1712951446591,-153.20965356,0.00054794,120]
[322319995,1712951446599,-500.0,0.00054794,120]
[322319997,1712951446611,-500.0,0.00054794,120]
[322319999,1712951446620,-3998.1,0.00054794,120]
[322320001,1712951446629,-500.0,0.00054794,120]
[322320003,1712951446638,-500.0,0.00054794,120]
[322320005,1712951446647,-500.0,0.00054794,120]
[322320007,1712951446656,-500.0,0.00054794,120]
[322320009,1712951446665,-500.0,0.00054794,120]
[322320011,1712951446674,-309.92244897,0.00054794,120]
[322320012,1712951446683,-1760.0,0.00054794,120]
[322320014,1712951446691,-1384.49,0.00054794,120]
[322320016,1712951446700,-500.0,0.00054794,120]
[322320018,1712951446710,-500.0,0.00054794,120]
[322320020,1712951446719,-500.0,0.00054794,120]
[322320022,1712951446728,-500.0,0.00054794,120]
[322320024,1712951446737,-500.0,0.00054794,120]
[322320026,1712951446747,-292.63875805,0.00054794,120]
[322320028,1712951446756,-1256.8,0.00054794,120]
[322320030,1712951446766,-500.0,0.00054794,120]
[322320032,1712951446775,-500.0,0.00054794,120]
[322320034,1712951446784,-500.0,0.00054794,120]
[322320036,1712951446793,-506.91497064,0.00054794,120]
[322320038,1712951446802,-500.0,0.00054794,20]
[322320040,1712951446811,-527.54,0.00054794,120]
[322320042,1712951446821,-2181.57,0.00054794,120]
[322320044,1712951446833,-500.0,0.00054794,120]
[322320046,1712951446842,-500.0,0.00054794,120]
[322320048,1712951446851,-158.03355659,0.00054795,120]
[322320050,1712951446863,-158.03355659,0.00054795,120]
[322320052,1712951446873,-158.03355659,0.00054795,120]
[322320054,1712951446882,-158.53,0.00054795,120]
[322320056,1712951446891,-158.12730659,0.00054795,120]
[322320057,1712951446900,-158.12730659,0.00054795,120]
[322320058,1712951446911,-158.12730659,0.00054795,120]
[322320059,1712951446920,-158.12730659,0.00054795,120]
[322320060,1712951446929,-158.12730659,0.00054795,120]
[322320061,1712951446938,-158.12730659,0.00054795,120]
[322320062,1712951446947,-158.12730659,0.00054795,120]
[322320063,1712951446957,-158.12730659,0.00054795,120]
[322320064,1712951446966,-158.12730659,0.00054795,120]
[322320065,1712951446974,-158.12730659,0.00054795,120]
[322320066,1712951446983,-158.12730659,0.00054795,120]
[322320067,1712951446991,-158.12730659,0.00054795,120]
[322320068,1712951447001,-158.12730659,0.00054795,120]
[322320069,1712951447010,-158.12730659,0.00054795,120]
[322320071,1712951447018,-158.12730659,0.00054795,120]
[322320073,1712951447027,-158.62,0.00054795,120]
[322320075,1712951447036,-150.9107837,0.00054795,120]
[322320077,1712951447045,-151.41,0.00054795,120]
[322320078,1712951447054,-151.0982837,0.00054795,120]
[322320079,1712951447063,-151.0982837,0.00054795,120]
[322320081,1712951447072,-151.0982837,0.00054795,120]
[322320082,1712951447081,-151.0982837,0.00054795,120]
[322320083,1712951447090,-151.0982837,0.00054795,120]
[322320084,1712951447099,-151.0982837,0.00054795,120]
[322320085,1712951447110,-151.0982837,0.00054795,120]
[322320086,1712951447119,-151.59,0.00054795,120]
[322320088,1712951447127,-157.3428264,0.00054795,120]
[322320089,1712951447136,-157.3428264,0.00054795,120]
[322320090,1712951447145,-157.3428264,0.00054795,120]
[322320091,1712951447154,-157.3428264,0.00054795,120]
[322320092,1712951447162,-157.3428264,0.00054795,120]
[322320093,1712951447171,-157.3428264,0.00054795,120]
[322320094,1712951447180,-157.3428264,0.00054795,120]
[322320095,1712951447189,-157.3428264,0.00054795,120]
[322320096,1712951447198,-157.3428264,0.00054795,120]
[322320097,1712951447206,-157.3428264,0.00054795,120]
[322320098,1712951447216,-157.3428264,0.00054795,120]
[322320099,1712951447225,-157.3428264,0.00054795,120]
[322320100,1712951447234,-157.3428264,0.00054795,120]
[322320101,1712951447243,-157.3428264,0.00054795,120]
[322320102,1712951447252,-157.3428264,0.00054795,120]
[322320103,1712951447261,-157.84,0.00054795,120]
[322320104,1712951447269,-503.57204449,0.00054795,120]
[322320105,1712951447279,-503.57204449,0.00054795,120]
[322320106,1712951447288,-503.57204449,0.00054795,120]
[322320107,1712951447297,-503.57204449,0.00054795,120]
[322320108,1712951447306,-503.57204449,0.00054795,120]
[322320109,1712951447315,-503.57204449,0.00054795,120]
[322320110,1712951447324,-503.57204449,0.00054795,120]
[322320111,1712951447333,-503.57204449,0.00054795,120]
[322320112,1712951447342,-503.57204449,0.00054795,120]
[322320113,1712951447351,-503.57204449,0.00054795,120]
[322320114,1712951447363,-503.57204449,0.00054795,120]
[322320115,1712951447372,-503.57204449,0.00054795,120]
[322320116,1712951447381,-503.57204449,0.00054795,120]
[322320117,1712951447391,-503.57204449,0.00054795,120]
[322320118,1712951447400,-503.57204449,0.00054795,120]
[322320119,1712951447409,-503.57204449,0.00054795,120]
[322320120,1712951447418,-503.57204449,0.00054795,120]
[322320121,1712951447426,-503.57204449,0.00054795,120]
[322320122,1712951447436,-503.57204449,0.00054795,120]
[322320123,1712951447445,-504.07,0.00054795,120]
[322320124,1712951447454,-164.058895,0.00054795,2]
[322320125,1712951447464,-153.4133504,0.00054864,60]
[322320126,1712951447474,-1000.0,0.00055,2]
[322320127,1712951447484,-1799.97122019,0.000557,120]
[322320128,1712951447493,-222.909598,0.00056236,2]
[322320129,1712951447502,-1000.0,0.00056245,5]
[322320130,1712951447512,-158.159023,0.00056621,2]
[322320131,1712951447521,-500.0,0.00056712,120]
[322320132,1712951447530,-500.0,0.00056712,120]
[322320133,1712951447600,-500.0,0.00056712,120]
[322320134,1712951447612,-500.0,0.00056712,120]
[322320135,1712951447622,-410.0,0.00056712,120]
[322320136,1712951447631,-410.0,0.00056712,120]
[322320137,1712951447641,-500.0,0.00056712,120]
[322320138,1712951447650,-500.0,0.00056712,120]
[322320139,1712951447660,-500.0,0.00056712,120]
[322320140,1712951447669,-500.0,0.00056712,120]
[322320141,1712951447678,-500.0,0.00056712,120]
[322320142,1712951447688,-151.0,0.00056712,120]
[322320143,1712951447697,-158.09608025,0.00056712,120]
[322320144,1712951447706,-734.55,0.00056712,120]
[322320145,1712951447715,-500.0,0.00056712,120]
[322320146,1712951447724,-500.0,0.00056712,120]
[322320147,1712951447733,-500.0,0.00056712,120]
[322320148,1712951447742,-500.0,0.00056712,120]
[322320149,1712951447751,-500.0,0.00056712,120]
[322320150,1712951447761,-500.0,0.00056712,120]
[322320151,1712951447770,-500.0,0.00056712,120]
[322320152,1712951447779,-574.20450814,0.00056712,120]
[322320153,1712951447788,-500.0,0.00056712,120]
[322320154,1712951447798,-500.0,0.00056712,120]
[322320155,1712951447807,-481.4714267,0.00056712,120]
[322320156,1712951447817,-500.0,0.00056712,120]
[322320157,1712951447827,-507.65843774,0.00056712,120]
[322320158,1712951447837,-292.9000006,0.00056712,7]
[322320159,1712951447848,-500.0,0.00056712,120]
[322320161,1712951447859,-500.0,0.00056712,120]
[322320162,1712951447868,-500.0,0.00056712,120]
[322320164,1712951447878,-500.0,0.00056712,120]
[322320166,1712951447887,-500.0,0.00056712,120]
[322320168,1712951447896,-500.0,0.00056712,120]
[322320170,1712951447905,-190.64638675,0.00056712,120]
[322320172,1712951447915,-500.0,0.00056712,120]
[322320174,1712951447926,-500.0,0.00056712,120]
[322320176,1712951447937,-500.0,0.00056712,120]
[322320178,1712951447947,-500.0,0.00056712,120]
[322320180,1712951447956,-500.0,0.00056712,120]
[322320182,1712951447965,-500.81315334,0.00056712,14]
[322320184,1712951447975,-151.0,0.00056712,120]
[322320186,1712951447984,-500.0,0.00056712,120]
[322320188,1712951447994,-500.0,0.00056712,120]
[322320190,1712951448003,-888.76,0.00056712,120]
[322320191,1712951448012,-500.0,0.00056712,120]
[322320192,1712951448022,-500.0,0.00056712,120]
[322320193,1712951448032,-500.0,0.00056712,120]
[322320194,1712951448042,-500.0,0.00056712,120]
[322320195,1712951448052,-398.12962254,0.00056712,120]
[322320196,1712951448062,-500.0,0.00056712,120]
[322320197,1712951448072,-500.0,0.00056712,120]
[322320198,1712951448082,-500.0,0.00056712,120]
[322320200,1712951448091,-500.0,0.00056712,120]
[322320201,1712951448100,-166.668538,0.00056712,120]
[322320203,1712951448114,-500.0,0.00056712,120]
[322320205,1712951448123,-166.668538,0.00056712,120]
[322320207,1712951448133,-500.0,0.00056712,120]
[322320208,1712951448142,-500.0,0.00056712,120]
[322320209,1712951448151,-497.82549668,0.00056712,120]
[322320210,1712951448160,-500.0,0.00056712,120]
[322320211,1712951448171,-500.0,0.00056712,120]
[322320212,1712951448180,-500.0,0.00056712,120]
[322320213,1712951448190,-248.94708697,0.00056712,120]
[322320214,1712951448200,-500.0,0.00056712,120]
[322320215,1712951448210,-473.55820831,0.00056712,120]
[322320216,1712951448219,-500.0,0.00056712,120]
[322320217,1712951448229,-500.0,0.00056712,120]
[322320218,1712951448238,-151.0,0.00056712,120]
[322320219,1712951448248,-500.0,0.00056712,120]
[322320220,1712951448257,-295.04346083,0.00056712,120]
[322320221,1712951448266,-560.37441479,0.00056712,120]
[322320222,1712951448276,-762.13,0.00056712,120]
[322320223,1712951448285,-1807.37,0.00056712,60]
[322320224,1712951448294,-500.0,0.00056712,120]
[322320225,1712951448303,-500.0,0.00056712,120]
[322320226,1712951448313,-151.0,0.00056712,120]
[322320227,1712951448322,-206.709278,0.00056712,120]
[322320228,1712951448331,-500.0,0.00056712,120]
[322320229,1712951448341,-500.0,0.00056712,120]
[322320230,1712951448350,-187.33083336,0.00056712,120]
[322320231,1712951448362,-500.0,0.00056712,120]
[322320232,1712951448372,-500.0,0.00056712,120]
[322320233,1712951448381,-500.0,0.00056712,120]
[322320234,1712951448390,-500.0,0.00056712,120]
[322320235,1712951448399,-500.0,0.00056712,120]
[322320236,1712951448409,-540.21359472,0.00056712,120]
[322320237,1712951448418,-500.0,0.00056712,120]
[322320238,1712951448428,-834.11,0.00056712,120]
[322320239,1712951448437,-500.0,0.00056712,120]
[322320240,1712951448447,-500.0,0.00056712,120]
[322320241,1712951448457,-151.0,0.00056712,120]
[322320242,1712951448466,-500.0,0.00056712,120]
[322320243,1712951448480,-500.0,0.00056712,120]
[322320244,1712951448490,-500.0,0.00056712,120]
[322320245,1712951448499,-1212.39,0.00056712,120]
[322320246,1712951448508,-500.0,0.00056712,120]
[322320247,1712951448518,-411.34389216,0.00056712,120]
[322320248,1712951448527,-347.84297722,0.00056712,120]
[322320249,1712951448536,-500.0,0.00056712,120]
[322320250,1712951448545,-500.0,0.00056712,120]
[322320251,1712951448555,-500.0,0.00056712,120]
[322320252,1712951448564,-166.16504241,0.00056712,120]
[322320253,1712951448574,-500.0,0.00056712,120]
[322320254,1712951448583,-500.0,0.00056712,120]
[322320255,1712951448593,-500.0,0.00056712,120]
[322320256,1712951448602,-500.0,0.00056712,120]
[322320257,1712951448615,-164.441677,0.00056712,120]
[322320258,1712951448624,-164.441677,0.00056712,120]
[322320259,1712951448633,-742.69,0.00056712,120]
[322320260,1712951448643,-500.0,0.00056712,120]
[322320261,1712951448653,-500.0,0.00056712,120]
[322320262,1712951448662,-500.0,0.00056712,120]
[322320263,1712951448671,-6615.18,0.00056712,120]
[322320264,1712951448680,-500.0,0.00056712,120]
[322320265,1712951448689,-500.0,0.00056712,120]
[322320266,1712951448698,-500.0,0.00056712,120]
[322320267,1712951448708,-1356.1,0.00056712,120]
[322320268,1712951448717,-500.0,0.00056712,120]
[322320269,1712951448727,-500.0,0.00056712,120]
[322320270,1712951448736,-831.74,0.00056712,120]
[322320271,1712951448746,-500.0,0.00056712,120]
[322320272,1712951448755,-3749.95,0.00056712,120]
[322320273,1712951448765,-1396.89,0.00056712,120]
[322320274,1712951448775,-500.0,0.00056712,120]
[322320275,1712951448786,-500.0,0.00056712,120]
[322320276,1712951448796,-1000.0,0.00056712,7]
[322320277,1712951448805,-500.0,0.00056712,120]
[322320278,1712951448815,-500.0,0.00056712,120]
[322320279,1712951448826,-550.21628964,0.00056712,120]
[322320280,1712951448835,-500.0,0.00056712,120]
[322320281,1712951448845,-500.0,0.00056712,120]
[322320282,1712951448859,-500.0,0.00056712,120]
[322320283,1712951448869,-500.0,0.00056712,120]
[322320284,1712951448878,-2721.92,0.00056712,120]
[322320285,1712951448887,-500.0,0.00056712,120]
[322320286,1712951448897,-500.0,0.00056712,120]
[322320287,1712951448906,-500.0,0.00056712,120]
[322320288,1712951448915,-500.0,0.00056712,120]
[322320289,1712951448925,-758.16753,0.00056712,120]
[322320290,1712951448935,-503.87,0.00056712,120]
[322320291,1712951449003,-758.16753,0.00056712,120]
[322320292,1712951449014,-500.0,0.00056712,120]
[322320293,1712951449023,-936.62,0.00056712,120]
[322320294,1712951449032,-870.38,0.00056712,120]
[322320295,1712951449041,-285.835169,0.00056712,120]
[322320296,1712951449051,-500.0,0.00056712,120]
[322320297,1712951449060,-500.0,0.00056712,120]
[322320298,1712951449069,-158.672482,0.00056712,120]
[322320299,1712951449079,-3029.72,0.00056712,120]
[322320300,1712951449087,-158.672482,0.00056712,120]
[322320301,1712951449097,-500.0,0.00056712,120]
[322320302,1712951449109,-500.0,0.00056712,120]
[322320303,1712951449118,-500.0,0.00056712,60]
[322320304,1712951449127,-500.0,0.00056712,120]
[322320305,1712951449137,-500.0,0.00056712,120]
[322320306,1712951449146,-500.0,0.00056712,120]
[322320307,1712951449155,-902.5,0.00056712,120]
[322320308,1712951449164,-2508.37,0.00056712,120]
[322320309,1712951449173,-800.65,0.00056712,120]
[322320310,1712951449182,-1242.51,0.00056712,120]
[322320311,1712951449192,-500.0,0.00056712,120]
[322320312,1712951449201,-500.0,0.00056712,120]
[322320313,1712951449210,-1165.32,0.00056712,120]
[322320314,1712951449219,-500.0,0.00056712,120]
[322320315,1712951449228,-500.0,0.00056712,120]
[322320316,1712951449238,-500.0,0.00056712,120]
[322320317,1712951449247,-2000.4,0.00056712,120]
[322320318,1712951449257,-417.90975819,0.00056712,120]
[322320319,1712951449266,-500.0,0.00056712,120]
[322320320,1712951449275,-500.0,0.00056712,120]
[322320321,1712951449285,-500.0,0.00056712,120]
[322320322,1712951449294,-500.0,0.00056712,120]
[322320323,1712951449304,-1286.56,0.00056712,120]
[322320324,1712951449313,-500.0,0.00056712,120]
[322320325,1712951449322,-500.0,0.00056712,120]
[322320326,1712951449332,-381.13798679,0.00056712,120]
[322320327,1712951449341,-252.61919789,0.00056712,120]
[322320328,1712951449351,-500.0,0.00056712,120]
[322320329,1712951449363,-844.43,0.00056712,120]
[322320330,1712951449372,-1267.5,0.00056712,120]
[322320331,1712951449382,-500.0,0.00056712,120]
[322320332,1712951449391,-500.0,0.00056712,120]
[322320333,1712951449401,-500.0,0.00056712,120]
[322320334,1712951449410,-500.0,0.00056712,120]
[322320335,1712951449419,-501.24402991,0.00056712,120]
[322320336,1712951449429,-500.0,0.00056712,120]
[322320337,1712951449439,-507.01188694,0.00056712,120]
[322320338,1712951449449,-828.94,0.00056712,120]
[322320339,1712951449458,-500.0,0.00056712,120]
[322320340,1712951449467,-500.0,0.00056712,120]
[322320341,1712951449477,-300.0,0.00056712,7]
[322320342,1712951449487,-857.33,0.00056712,120]
[322320343,1712951449497,-500.0,0.00056712,120]
[322320344,1712951449506,-500.0,0.00056712,120]
[322320345,1712951449515,-500.0,0.00056712,120]
[322320346,1712951449524,-500.0,0.00056712,120]
[322320347,1712951449534,-500.0,0.00056712,120]
[322320348,1712951449543,-500.0,0.00056712,120]
[322320349,1712951449553,-500.0,0.00056712,120]
[322320350,1712951449563,-500.0,0.00056712,120]
[322320351,1712951449573,-500.0,0.00056712,120]
[322320352,1712951449582,-500.0,0.00056712,120]
[322320353,1712951449592,-248.35466,0.00056712,14]
[322320354,1712951449602,-500.0,0.00056712,120]
[322320355,1712951449615,-500.0,0.00056712,120]
[322320356,1712951449625,-500.0,0.00056712,120]
[322320357,1712951449634,-37087.71,0.00056712,120]
[322320358,1712951449644,-248.35466,0.00056712,14]
[322320359,1712951449653,-1034.24,0.00056712,120]
[322320360,1712951449663,-500.0,0.00056712,120]
[322320361,1712951449672,-500.0,0.00056712,120]
[322320362,1712951449682,-342.2568,0.00056712,120]
[322320363,1712951449691,-493.86179217,0.00056712,120]
[322320364,1712951449700,-11023.14,0.00056712,120]
[322320365,1712951449709,-1092.24,0.00056712,120]
[322320366,1712951449718,-2860.19,0.00056712,21]
[322320367,1712951449728,-500.0,0.00056712,120]
[322320368,1712951449737,-230.064055,0.00056712,120]
[322320369,1712951449746,-500.0,0.00056712,120]
[322320370,1712951449755,-1621.18,0.00056712,120]
[322320371,1712951449764,-230.064055,0.00056712,120]
[322320372,1712951449773,-500.0,0.00056712,120]
[322320373,1712951449782,-500.0,0.00056712,120]
[322320374,1712951449791,-500.0,0.00056712,120]
[322320375,1712951449801,-151.000001,0.00056712,120]
[322320376,1712951449810,-500.0,0.00056712,120]
[322320377,1712951449819,-500.0,0.00056712,120]
[322320378,1712951449831,-500.0,0.00056712,120]
[322320379,1712951449841,-3998.1,0.00056712,120]
[322320380,1712951449852,-500.0,0.00056712,120]
[322320381,1712951449863,-500.0,0.00056712,120]
[322320382,1712951449874,-500.0,0.00056712,120]
[322320383,1712951449883,-387.5996027,0.00056712,120]
[322320384,1712951449892,-1384.49,0.00056712,120]
[322320385,1712951449902,-1760.0,0.00056712,120]
[322320386,1712951449911,-501.34104571,0.00056712,120]
[322320387,1712951449921,-500.0,0.00056712,120]
[322320388,1712951449931,-500.0,0.00056712,120]
[322320389,1712951449940,-151.0,0.00056712,120]
[322320390,1712951449949,-500.0,0.00056712,120]
[322320391,1712951449959,-1256.8,0.00056712,120]
[322320392,1712951449969,-511.86025329,0.00056712,120]
[322320393,1712951449978,-527.54,0.00056712,120]
[322320394,1712951449987,-2181.57,0.00056712,120]
[322320395,1712951449996,-500.0,0.00056712,120]
[322320396,1712951450005,-905.0,0.00056823,120]
[322320397,1712951450014,-1760.83336052,0.00057,120]
[322320398,1712951450023,-154.44574458,0.00057727,120]
[322320399,1712951450033,-150.0,0.00057762,7]
[322320400,1712951450043,-200.0,0.00058114,120]
[322320401,1712951450053,-1000.0,0.00058452,10]
[322320402,1712951450062,-288.0,0.0005863,120]
[322320403,1712951450071,-500.0,0.0005863,120]
[322320404,1712951450080,-500.0,0.0005863,120]
[322320405,1712951450090,-500.0,0.0005863,120]
[322320406,1712951450099,-500.0,0.0005863,120]
[322320407,1712951450109,-500.0,0.0005863,120]
[322320408,1712951450118,-500.0,0.0005863,120]
[322320409,1712951450127,-500.0,0.0005863,120]
[322320410,1712951450136,-734.55,0.0005863,120]
[322320411,1712951450145,-500.0,0.0005863,120]
[322320412,1712951450154,-609.83681449,0.0005863,120]
[322320413,1712951450165,-500.0,0.0005863,120]
[322320414,1712951450175,-500.0,0.0005863,120]
[322320415,1712951450184,-505.20185528,0.0005863,120]
[322320416,1712951450193,-500.0,0.0005863,120]
[322320417,1712951450202,-500.0,0.0005863,120]
[322320418,1712951450211,-500.0,0.0005863,120]
[322320419,1712951450278,-500.0,0.0005863,120]
[322320420,1712951450288,-500.0,0.0005863,120]
[322320421,1712951450300,-500.0,0.0005863,120]
[322320422,1712951450310,-888.76,0.0005863,120]
[322320423,1712951450320,-500.0,0.0005863,120]
[322320424,1712951450330,-500.0,0.0005863,120]
[322320425,1712951450341,-511.67115905,0.0005863,120]
[322320426,1712951450352,-500.0,0.0005863,120]
[322320427,1712951450363,-500.0,0.0005863,120]
[322320428,1712951450372,-500.0,0.0005863,120]
[322320429,1712951450382,-500.0,0.0005863,120]
[322320430,1712951450393,-500.0,0.0005863,120]
[322320431,1712951450403,-500.0,0.0005863,120]
[322320432,1712951450413,-151.8318696,0.0005863,120]
[322320433,1712951450422,-500.0,0.0005863,120]
[322320434,1712951450432,-500.0,0.0005863,120]
[322320435,1712951450442,-500.0,0.0005863,120]
[322320436,1712951450451,-762.13,0.0005863,120]
[322320437,1712951450461,-1807.37,0.0005863,60]
[322320438,1712951450471,-492.18490399,0.0005863,120]
[322320439,1712951450480,-500.0,0.0005863,120]
[322320440,1712951450490,-500.0,0.0005863,120]
[322320441,1712951450499,-500.0,0.0005863,120]
[322320442,1712951450508,-500.0,0.0005863,120]
[322320443,1712951450518,-500.0,0.0005863,120]
[322320444,1712951450527,-500.0,0.0005863,120]
[322320445,1712951450537,-834.11,0.0005863,120]
[322320446,1712951450547,-500.0,0.0005863,120]
[322320447,1712951450556,-500.0,0.0005863,120]
[322320448,1712951450566,-454.42818156,0.0005863,120]
[322320449,1712951450575,-1212.39,0.0005863,120]
[322320450,1712951450585,-580.07952403,0.0005863,120]
[322320451,1712951450595,-500.0,0.0005863,120]
[322320452,1712951450604,-500.0,0.0005863,120]
[322320453,1712951450615,-500.0,0.0005863,120]
[322320454,1712951450624,-504.0763583,0.0005863,120]
[322320455,1712951450633,-500.0,0.0005863,120]
[322320456,1712951450643,-500.0,0.0005863,120]
[322320457,1712951450652,-742.69,0.0005863,120]
[322320458,1712951450662,-500.0,0.0005863,120]
[322320459,1712951450672,-6615.18,0.0005863,120]
[322320460,1712951450682,-1356.1,0.0005863,120]
[322320461,1712951450691,-500.0,0.0005863,120]
[322320462,1712951450700,-500.0,0.0005863,120]
[322320463,1712951450709,-831.74,0.0005863,120]
[322320464,1712951450718,-500.0,0.0005863,120]
[322320465,1712951450727,-3749.95,0.0005863,120]
[322320466,1712951450737,-1396.89,0.0005863,120]
[322320467,1712951450747,-500.0,0.0005863,120]
[322320468,1712951450756,-1000.0,0.0005863,7]
[322320469,1712951450765,-500.0,0.0005863,120]
[322320470,1712951450775,-288.52461699,0.0005863,120]
[322320471,1712951450784,-500.0,0.0005863,120]
[322320472,1712951450794,-500.0,0.0005863,120]
[322320473,1712951450803,-2721.92,0.0005863,120]
[322320474,1712951450812,-500.0,0.0005863,120]
[322320475,1712951450821,-500.0,0.0005863,120]
[322320476,1712951450833,-503.87,0.0005863,120]
[322320477,1712951450843,-500.0,0.0005863,120]
[322320478,1712951450854,-936.62,0.0005863,120]
[322320479,1712951450865,-870.38,0.0005863,120]
[322320480,1712951450874,-500.0,0.0005863,120]
[322320481,1712951450883,-504.97991679,0.0005863,120]
[322320482,1712951450892,-3029.72,0.0005863,120]
[322320483,1712951450902,-500.0,0.0005863,120]
[322320484,1712951450911,-500.0,0.0005863,60]
[322320485,1712951450920,-500.0,0.0005863,120]
[322320486,1712951450930,-500.0,0.0005863,120]
[322320487,1712951450940,-902.5,0.0005863,120]
[322320488,1712951450949,-2508.37,0.0005863,120]
[322320489,1712951450958,-800.65,0.0005863,120]
[322320490,1712951450967,-1242.51,0.0005863,120]
[322320491,1712951450976,-500.0,0.0005863,120]
[322320492,1712951450986,-1165.32,0.0005863,120]
[322320493,1712951450995,-500.0,0.0005863,120]
[322320494,1712951451004,-2000.4,0.0005863,120]
[322320495,1712951451013,-500.0,0.0005863,120]
[322320496,1712951451023,-500.0,0.0005863,120]
[322320497,1712951451032,-413.40395533,0.0005863,120]
[322320498,1712951451042,-1286.56,0.0005863,120]
[322320499,1712951451051,-500.0,0.0005863,120]
[322320500,1712951451060,-500.0,0.0005863,120]
[322320501,1712951451069,-844.43,0.0005863,120]
[322320502,1712951451078,-1267.5,0.0005863,120]
[322320503,1712951451088,-500.0,0.0005863,120]
[322320504,1712951451098,-500.0,0.0005863,120]
[322320505,1712951451108,-500.0,0.0005863,120]
[322320506,1712951451117,-500.0,0.0005863,120]
[322320507,1712951451126,-500.0,0.0005863,120]
[322320508,1712951451135,-828.94,0.0005863,120]
[322320509,1712951451145,-171.84281171,0.0005863,120]
[322320510,1712951451154,-500.0,0.0005863,120]
[322320511,1712951451164,-300.0,0.0005863,7]
[322320512,1712951451174,-857.33,0.0005863,120]
[322320513,1712951451183,-500.0,0.0005863,120]
[322320514,1712951451192,-500.0,0.0005863,120]
[322320515,1712951451201,-571.83883088,0.0005863,120]
[322320516,1712951451211,-500.0,0.0005863,120]
[322320517,1712951451220,-500.0,0.0005863,120]
[322320518,1712951451229,-500.0,0.0005863,120]
[322320519,1712951451238,-500.0,0.0005863,120]
[322320520,1712951451248,-500.0,0.0005863,120]
[322320521,1712951451257,-500.0,0.0005863,120]
[322320522,1712951451267,-500.0,0.0005863,120]
[322320523,1712951451276,-500.0,0.0005863,120]
[322320524,1712951451285,-500.0,0.0005863,120]
[322320525,1712951451295,-500.0,0.0005863,120]
[322320526,1712951451305,-37087.71,0.0005863,120]
[322320527,1712951451314,-1034.24,0.0005863,120]
[322320528,1712951451323,-500.0,0.0005863,120]
[322320529,1712951451333,-11023.14,0.0005863,120]
[322320530,1712951451343,-1092.24,0.0005863,120]
[322320531,1712951451352,-2860.19,0.0005863,21]
[322320532,1712951451362,-500.0,0.0005863,120]
[322320533,1712951451372,-500.0,0.0005863,120]
[322320534,1712951451381,-1621.18,0.0005863,120]
[322320535,1712951451391,-500.0,0.0005863,120]
[322320536,1712951451402,-500.0,0.0005863,120]
[322320537,1712951451467,-500.0,0.0005863,120]
[322320538,1712951451478,-500.0,0.0005863,120]
[322320539,1712951451487,-500.0,0.0005863,120]
[322320540,1712951451496,-3998.1,0.0005863,120]